fUSD/lending_fUSD_20250916
["ID","MTS","AMOUNT","RATE_DAILY","PERIOD"]
[385810833,1758055849341,-405.55950015,0.00030136,6]
[385810834,1758055849351,-400.0,0.00030136,6]
[385810835,1758055849361,-400.90570025,0.00030136,6]
[385810836,1758055849370,-400.0,0.00030136,6]
[385810837,1758055849381,-400.0,0.00030136,6]
[385810838,1758055849390,-400.0,0.00030136,6]
[385810839,1758055849400,-400.0,0.00030136,6]
[385810840,1758055849410,-254.83643027,0.00030136,6]
[385810841,1758055849420,-400.0,0.00030136,6]
[385810842,1758055849429,-509.49,0.00030136,6]
[385810843,1758055849439,-400.0,0.00030136,6]
[385810844,1758055849448,-400.0,0.00030136,6]
[385810845,1758055849458,-400.0,0.00030136,6]
[385810846,1758055849467,-400.0,0.00030136,6]
[385810847,1758055849477,-501.58,0.00030136,6]
[385810848,1758055849486,-400.0,0.00030136,6]
[385810849,1758055849495,-400.0,0.00030136,6]
[385810850,1758055849505,-400.0,0.00030136,6]
[385810851,1758055849514,-400.0,0.00030136,6]
[385810852,1758055849524,-1169.89,0.00030136,6]
[385810853,1758055849533,-400.0,0.00030136,6]
[385810854,1758055849542,-400.0,0.00030136,6]
[385810855,1758055849552,-400.0,0.00030136,6]
[385810856,1758055849562,-400.0,0.00030136,6]
[385810857,1758055849571,-400.0,0.00030136,6]
[385810858,1758055849581,-400.0,0.00030136,6]
[385810859,1758055849591,-400.0,0.00030136,6]
[385810860,1758055849601,-400.0,0.00030136,6]
[385810861,1758055849610,-400.0,0.00030136,6]
[385810862,1758055849620,-400.0,0.00030136,6]
[385810863,1758055849630,-420.32,0.00030136,6]
[385810864,1758055849639,-400.65556914,0.00030136,6]
[385810865,1758055849649,-400.0,0.00030136,6]
[385810866,1758055849659,-400.0,0.00030136,6]
[385810867,1758055849669,-400.0,0.00030136,6]
[385810868,1758055849679,-400.0,0.00030136,6]
[385810869,1758055849689,-400.0,0.00030136,6]
[385810870,1758055849699,-400.0,0.00030136,6]
[385810871,1758055849708,-400.0,0.00030136,6]
[385810872,1758055849719,-400.0,0.00030136,6]
[385810873,1758055849729,-404.49202571,0.00030136,6]
[385810874,1758055849739,-400.0,0.00030136,6]
[385810875,1758055849749,-400.0,0.00030136,6]
[385810876,1758055849759,-404.39354565,0.00030136,6]
[385810877,1758055849769,-400.0,0.00030136,6]
[385810878,1758055849779,-400.0,0.00030136,6]
[385810879,1758055849789,-400.0,0.00030136,6]
[385810880,1758055849798,-400.0,0.00030136,6]
[385810881,1758055849808,-400.0,0.00030136,6]
[385810882,1758055849818,-400.0,0.00030136,6]
[385810883,1758055849827,-400.0,0.00030136,6]
[385810884,1758055849837,-400.0,0.00030136,6]
[385810885,1758055849846,-400.0,0.00030136,6]
[385810886,1758055849856,-400.0,0.00030136,6]
[385810887,1758055849865,-400.0,0.00030136,6]
[385810888,1758055849875,-515.27,0.00030136,6]
[385810889,1758055849884,-625.17,0.00030136,6]
[385810890,1758055849893,-400.0,0.00030136,6]
[385810891,1758055849903,-400.0,0.00030136,6]
[385810892,1758055849912,-400.0,0.00030136,6]
[385810893,1758055849923,-400.0,0.00030136,6]
[385810894,1758055849932,-400.0,0.00030136,6]
[385810895,1758055849942,-400.0,0.00030136,6]
[385810896,1758055849951,-400.0,0.00030136,6]
[385810897,1758055849961,-400.0,0.00030136,6]
[385810898,1758055849971,-406.70329396,0.00030136,6]
[385810899,1758055849980,-400.0,0.00030136,6]
[385810900,1758055849990,-439.62,0.00030136,6]
[385810901,1758055850000,-400.0,0.00030136,6]
[385810902,1758055850009,-400.0,0.00030136,6]
[385810903,1758055850019,-400.0,0.00030136,6]
[385810904,1758055850030,-400.0,0.00030136,6]
[385810905,1758055850040,-400.0,0.00030136,6]
[385810906,1758055850049,-511.44,0.00030136,6]
[385810907,1758055850059,-400.0,0.00030136,6]
[385810908,1758055850068,-735.9,0.00030136,6]
[385810909,1758055850078,-1007.96,0.00030136,6]
[385810910,1758055850090,-400.0,0.00030136,6]
[385810911,1758055850099,-400.0,0.00030136,6]
[385810912,1758055850110,-400.0,0.00030136,6]
[385810913,1758055850119,-400.0,0.00030136,6]
[385810914,1758055850129,-400.0,0.00030136,6]
[385810915,1758055850139,-400.0,0.00030136,6]
[385810916,1758055850148,-400.0,0.00030136,6]
[385810917,1758055850158,-404.33956901,0.00030136,6]
[385810918,1758055850167,-400.0,0.00030136,6]
[385810919,1758055850177,-400.0,0.00030136,6]
[385810920,1758055850186,-400.0,0.00030136,6]
[385810921,1758055850196,-229.16623789,0.00030136,6]
[385810922,1758055850206,-402.32770161,0.00030136,6]
[385810923,1758055850215,-457.27,0.00030136,6]
[385810924,1758055850226,-400.0,0.00030136,6]
[385810925,1758055850235,-539.99,0.00030136,6]
[385810926,1758055850245,-468.84,0.00030136,6]
[385810927,1758055850257,-500.0,0.00030136,6]
[385810928,1758055850267,-400.0,0.00030136,6]
[385810929,1758055850277,-592.52,0.00030136,6]
[385810930,1758055850287,-414.16,0.00030136,6]
[385810931,1758055850299,-431.48,0.00030136,6]
[385810932,1758055850309,-400.0,0.00030136,6]
[385810933,1758055850319,-400.0,0.00030136,6]
[385810934,1758055850332,-400.0,0.00030136,6]
[385810935,1758055850344,-400.0,0.00030136,6]
[385810936,1758055850353,-400.0,0.00030136,6]
[385810937,1758055850363,-400.0,0.00030136,6]
[385810938,1758055850372,-459.27,0.00030136,6]
[385810939,1758055850382,-502.6429,0.00030136,6]
[385810940,1758055850393,-400.0,0.00030136,6]
[385810941,1758055850402,-946.11,0.00030136,6]
[385810942,1758055850411,-400.0,0.00030136,6]
[385810943,1758055850421,-952.83,0.00030136,6]
[385810944,1758055850430,-401.78331322,0.00030136,6]
[385810945,1758055850439,-714.98,0.00030136,6]
[385810946,1758055850449,-500.0,0.00030136,6]
[385810947,1758055850458,-500.0,0.00030136,6]
[385810948,1758055850468,-416.36531149,0.00030136,6]
[385810949,1758055850478,-400.0,0.00030136,6]
[385810950,1758055850487,-400.0,0.00030136,6]
[385810951,1758055850497,-2413.87,0.00030136,6]
[385810952,1758055850507,-402.76033257,0.00030136,6]
[385810953,1758055850516,-502.49,0.00030136,6]
[385810954,1758055850525,-400.56014434,0.00030136,6]
[385810955,1758055850534,-400.0,0.00030136,6]
[385810956,1758055850544,-525.48,0.00030136,6]
[385810957,1758055850553,-409.27001771,0.00030136,6]
[385810958,1758055850563,-400.0,0.00030136,6]
[385810959,1758055850575,-400.0,0.00030136,6]
[385810960,1758055850585,-400.0,0.00030136,6]
[385810961,1758055850595,-400.0,0.00030136,6]
[385810962,1758055850604,-400.0,0.00030136,6]
[385810963,1758055850614,-409.22902089,0.00030136,6]
[385810964,1758055850623,-400.0,0.00030136,6]
[385810965,1758055850633,-400.0,0.00030136,6]
[385810966,1758055850643,-400.0,0.00030136,6]
[385810967,1758055850652,-400.0,0.00030136,6]
[385810968,1758055850662,-400.0,0.00030136,6]
[385810969,1758055850671,-389.88790098,0.00030136,6]
[385810970,1758055850681,-400.0,0.00030136,6]
[385810971,1758055850691,-400.0,0.00030136,6]
[385810972,1758055850700,-528.5,0.00030136,6]
[385810973,1758055850710,-400.0,0.00030136,6]
[385810974,1758055850719,-400.0,0.00030136,6]
[385810975,1758055850729,-485.03,0.00030136,6]
[385810976,1758055850738,-400.0,0.00030136,6]
[385810977,1758055850748,-499.88,0.00030136,6]
[385810978,1758055850758,-400.0,0.00030136,6]
[385810979,1758055850768,-400.0,0.00030136,6]
[385810980,1758055850779,-634.51,0.00030136,6]
[385810981,1758055850790,-885.28,0.00030136,6]
[385810982,1758055850799,-300.0,0.00030136,6]
[385810983,1758055850809,-400.0,0.00030136,6]
[385810984,1758055850819,-632.16,0.00030136,6]
[385810985,1758055850828,-400.0,0.00030136,6]
[385810986,1758055850839,-400.0,0.00030136,6]
[385810987,1758055850849,-229.5198028,0.00030136,6]
[385810988,1758055851410,-170.4801972,0.00030136,6]
[385810989,1758055851420,-400.0,0.00030136,6]
[385810990,1758055851429,-44.55186117,0.00030136,6]
[385810991,1758055851441,-355.44813883,0.00030136,6]
[385810992,1758055851451,-400.60897545,0.00030136,6]
[385810993,1758055851461,-236.71325072,0.00030136,6]
[385810994,1758055851472,-163.28674928,0.00030136,6]
[385810995,1758055851482,-500.0,0.00030136,6]
[385810996,1758055851491,-134.52295331,0.00030136,6]
[385810997,1758055851516,-365.47704669,0.00030136,6]
[385810998,1758055851525,-500.0,0.00030136,6]
[385810999,1758055851535,-472.66,0.00030136,6]
[385811000,1758055851544,-400.0,0.00030136,6]
[385811001,1758055851553,-989.12,0.00030136,6]
[385811002,1758055851562,-400.0,0.00030136,6]
[385811003,1758055851572,-400.0,0.00030136,6]
[385811004,1758055851581,-458.62,0.00030136,6]
[385811005,1758055851591,-400.0,0.00030136,6]
[385811006,1758055851600,-400.0,0.00030136,6]
[385811007,1758055851609,-432.05,0.00030136,6]
[385811008,1758055851618,-400.0,0.00030136,6]
[385811009,1758055851628,-400.0,0.00030136,6]
[385811010,1758055851637,-400.0,0.00030136,6]
[385811011,1758055851647,-566.3,0.00030136,6]
[385811012,1758055851656,-400.0,0.00030136,6]
[385811013,1758055851665,-400.0,0.00030136,6]
[385811014,1758055851674,-400.0,0.00030136,6]
[385811015,1758055851683,-400.0,0.00030136,6]
[385811016,1758055851694,-403.92,0.00030136,6]
[385811017,1758055851702,-1276.01,0.00030136,6]
[385811018,1758055851711,-400.0,0.00030136,6]
[385811019,1758055851721,-400.0,0.00030136,6]
[385811020,1758055851730,-400.0,0.00030136,6]
[385811021,1758055851739,-400.0,0.00030136,6]
[385811022,1758055851749,-400.0,0.00030136,6]
[385811023,1758055851758,-454.74544877,0.00030136,6]
[385811024,1758055851767,-400.0,0.00030136,6]
[385811025,1758055851776,-400.0,0.00030136,6]
[385811026,1758055851785,-400.0,0.00030136,6]
[385811027,1758055851794,-418.98,0.00030136,6]
[385811028,1758055851803,-400.0,0.00030136,6]
[385811029,1758055851813,-400.0,0.00030136,6]
[385811030,1758055851822,-400.0,0.00030136,6]
[385811031,1758055851831,-2326.43,0.00030136,6]
[385811032,1758055851840,-404.45786912,0.00030136,6]
[385811033,1758055851850,-400.0,0.00030136,6]
[385811034,1758055851859,-538.32,0.00030136,6]
[385811035,1758055851868,-400.0,0.00030136,6]
[385811036,1758055851877,-400.0,0.00030136,6]
[385811037,1758055851886,-400.0,0.00030136,6]
[385811038,1758055851895,-400.0,0.00030136,6]
[385811039,1758055851903,-579.99,0.00030136,6]
[385811040,1758055851913,-400.0,0.00030136,6]
[385811041,1758055851923,-400.0,0.00030136,6]
[385811042,1758055851933,-400.0,0.00030136,6]
[385811043,1758055851942,-867.79,0.00030136,6]
[385811044,1758055851950,-400.0,0.00030136,6]
[385811045,1758055851960,-400.0,0.00030136,6]
[385811046,1758055851969,-400.0,0.00030136,6]
[385811047,1758055851978,-1109.01,0.00030136,6]
[385811048,1758055851987,-400.0,0.00030136,6]
[385811049,1758055851996,-1010.91,0.00030136,6]
[385811050,1758055852006,-400.0,0.00030136,6]
[385811051,1758055852016,-322.94545934,0.00030136,6]
[385811052,1758055852025,-400.0,0.00030136,6]
[385811053,1758055852036,-400.0,0.00030136,6]
[385811054,1758055852047,-1132.05,0.00030136,6]
[385811055,1758055852056,-406.09875783,0.00030136,6]
[385811056,1758055852064,-449.54,0.00030136,6]
[385811057,1758055852073,-400.0,0.00030136,6]
[385811058,1758055852083,-662.74,0.00030136,6]
[385811059,1758055852092,-469.75194849,0.00030136,6]
[385811060,1758055852101,-648.06,0.00030136,6]
[385811061,1758055852110,-500.0,0.00030136,6]
[385811062,1758055852119,-533.65,0.00030136,6]
[385811063,1758055852128,-500.0,0.00030136,6]
[385811064,1758055852137,-400.0,0.00030136,6]
[385811065,1758055852146,-400.0,0.00030136,6]
[385811066,1758055852155,-400.0,0.00030136,6]
[385811067,1758055852165,-400.0,0.00030136,6]
[385811068,1758055852173,-400.0,0.00030136,6]
[385811069,1758055852182,-1125.68,0.00030136,6]
[385811070,1758055852191,-400.0,0.00030136,6]
[385811071,1758055852200,-539.15,0.00030136,6]
[385811072,1758055852209,-400.0,0.00030136,6]
[385811073,1758055852218,-400.0,0.00030136,6]
[385811074,1758055852227,-500.0,0.00030136,6]
[385811075,1758055852236,-400.0,0.00030136,6]
[385811076,1758055852245,-493.22,0.00030136,6]
[385811077,1758055852256,-400.0,0.00030136,6]
[385811078,1758055852266,-400.0,0.00030136,6]
[385811079,1758055852275,-624.32,0.00030136,6]
[385811080,1758055852284,-589.24,0.00030136,6]
[385811081,1758055852293,-400.0,0.00030136,6]
[385811082,1758055852303,-400.0,0.00030136,6]
[385811083,1758055852312,-403.7418632,0.00030136,6]
[385811084,1758055852322,-201.97303651,0.00030136,6]
[385811085,1758055852342,-1058.06696349,0.00030136,6]
[385811086,1758055852351,-798.32,0.00030136,6]
[385811087,1758055852360,-400.0,0.00030136,6]
[385811088,1758055852369,-576.24,0.00030136,6]
[385811089,1758055852378,-400.0,0.00030136,6]
[385811090,1758055852387,-156.50304846,0.00030136,6]
[385811091,1758055852399,-243.49695154,0.00030136,6]
[385811092,1758055852408,-400.0,0.00030136,6]
[385811093,1758055852418,-400.0,0.00030136,6]
[385811094,1758055852427,-623.88,0.00030136,6]
[385811095,1758055852436,-400.0,0.00030136,6]
[385811096,1758055852445,-483.13,0.00030136,6]
[385811097,1758055852454,-400.0,0.00030136,6]
[385811098,1758055852464,-540.9,0.00030136,6]
[385811099,1758055852473,-401.18148742,0.00030136,6]
[385811100,1758055852482,-1873.62,0.00030136,6]
[385811101,1758055852490,-400.0,0.00030136,6]
[385811102,1758055852500,-400.0,0.00030136,6]
[385811103,1758055852509,-400.0,0.00030136,6]
[385811104,1758055852518,-619.08,0.00030136,6]
[385811105,1758055852527,-483.51,0.00030136,6]
[385811106,1758055852536,-500.0,0.00030136,6]
[385811107,1758055852545,-1080.44,0.00030136,6]
[385811108,1758055852554,-400.0,0.00030136,6]
[385811109,1758055852563,-400.0,0.00030136,6]
[385811110,1758055852572,-3866.02,0.00030136,6]
[385811111,1758055852581,-400.0,0.00030136,6]
[385811112,1758055852590,-684.05,0.00030136,6]
[385811113,1758055852599,-832.27,0.00030136,6]
[385811114,1758055852608,-300.15555971,0.00030136,6]
[385811115,1758055852617,-400.0,0.00030136,6]
[385811116,1758055852627,-400.0,0.00030136,6]
[385811117,1758055852636,-400.0,0.00030136,6]
[385811118,1758055852646,-400.0,0.00030136,6]
[385811119,1758055852656,-400.0,0.00030136,6]
[385811120,1758055852665,-400.0,0.00030136,6]
[385811121,1758055852675,-400.0,0.00030136,6]
[385811122,1758055852684,-400.0,0.00030136,6]
[385811123,1758055852693,-539.06,0.00030136,6]
[385811124,1758055852702,-400.0,0.00030136,6]
[385811125,1758055852712,-400.0,0.00030136,6]
[385811126,1758055852722,-400.0,0.00030136,6]
[385811127,1758055852731,-403.39045703,0.00030136,6]
[385811128,1758055852740,-603.43,0.00030136,6]
[385811129,1758055852750,-400.0,0.00030136,6]
[385811130,1758055852760,-674.22,0.00030136,6]
[385811131,1758055852769,-452.46530734,0.00030136,2]
[385811132,1758055852778,-400.0,0.00030136,6]
[385811133,1758055852787,-400.0,0.00030136,6]
[385811134,1758055852797,-881.46,0.00030136,6]
[385811135,1758055852806,-416.64,0.00030136,6]
[385811136,1758055852816,-456.38,0.00030136,6]
[385811137,1758055852825,-400.0,0.00030136,6]
[385811138,1758055852834,-400.0,0.00030136,6]
[385811139,1758055852843,-594.86,0.00030136,6]
[385811140,1758055852853,-416.47,0.00030136,6]
[385811141,1758055852862,-4462.76,0.00030136,6]
[385811142,1758055852872,-400.0,0.00030136,6]
[385811143,1758055852881,-500.02,0.00030136,6]
[385811144,1758055852890,-863.73,0.00030136,6]
[385811145,1758055852899,-400.0,0.00030136,6]
[385811146,1758055852909,-691.5,0.00030136,6]
[385811147,1758055852918,-820.55,0.00030136,6]
[385811148,1758055852927,-400.0,0.00030136,6]
[385811149,1758055852937,-400.0,0.00030136,6]
[385811150,1758055852946,-400.0,0.00030136,6]
[385811151,1758055852955,-934.84,0.00030136,6]
[385811152,1758055852965,-400.0,0.00030136,6]
[385811153,1758055852974,-1000.0,0.00030136,6]
[385811154,1758055852983,-400.0,0.00030136,6]
[385811155,1758055852992,-400.0,0.00030136,6]
[385811156,1758055853002,-400.0,0.00030136,6]
[385811157,1758055853011,-400.0,0.00030136,6]
[385811158,1758055853020,-400.0,0.00030136,6]
[385811159,1758055853030,-423.92,0.00030136,6]
[385811160,1758055853039,-559.15,0.00030136,6]
[385811161,1758055853049,-400.0,0.00030136,6]
[385811162,1758055853059,-400.0,0.00030136,6]
[385811163,1758055853068,-600.6,0.00030136,6]
[385811164,1758055853078,-400.0,0.00030136,6]
[385811165,1758055853088,-400.0,0.00030136,6]
[385811166,1758055853097,-400.0,0.00030136,6]
[385811167,1758055853107,-400.0,0.00030136,6]
[385811168,1758055853117,-400.0,0.00030136,6]
[385811169,1758055853126,-805.77,0.00030136,6]
[385811170,1758055853135,-400.0,0.00030136,6]
[385811171,1758055853144,-400.0,0.00030136,6]
[385811172,1758055853154,-400.0,0.00030136,6]
[385811173,1758055853165,-1155.56,0.00030136,6]
[385811174,1758055853176,-1316.13,0.00030136,6]
[385811175,1758055853185,-400.0,0.00030136,6]
[385811176,1758055853195,-910.36,0.00030136,6]
[385811177,1758055853205,-400.0,0.00030136,6]
[385811178,1758055853214,-400.0,0.00030136,6]
[385811179,1758055853223,-400.0,0.00030136,6]
[385811180,1758055853232,-400.0,0.00030136,6]
[385811181,1758055853242,-1000.65,0.00030136,6]
[385811182,1758055853254,-2311.18,0.00030136,6]
[385811183,1758055853263,-597.27,0.00030136,6]
[385811184,1758055853272,-655.36,0.00030136,6]
[385811185,1758055853282,-465.08,0.00030136,6]
[385811186,1758055853291,-937.69,0.00030136,6]
[385811187,1758055853302,-560.78,0.00030136,6]
[385811188,1758055853311,-400.0,0.00030136,6]
[385811189,1758055853321,-400.0,0.00030136,6]
[385811190,1758055853330,-400.0,0.00030136,6]
[385811191,1758055853343,-1273.95,0.00030136,6]
[385811192,1758055853353,-471.4,0.00030136,6]
[385811193,1758055853362,-400.0,0.00030136,6]
[385811194,1758055853371,-846.63,0.00030136,6]
[385811195,1758055853382,-500.0,0.00030136,6]
[385811196,1758055853391,-400.0,0.00030136,6]
[385811197,1758055853400,-400.0,0.00030136,6]
[385811198,1758055853410,-14098.53,0.00030136,6]
[385811199,1758055853421,-400.0,0.00030136,6]
[385811200,1758055853430,-553.78,0.00030136,6]
[385811201,1758055853440,-400.0,0.00030136,6]
[385811202,1758055853450,-400.0,0.00030136,6]
[385811203,1758055853459,-400.0,0.00030136,6]
[385811204,1758055853469,-400.0,0.00030136,6]
[385811205,1758055853479,-400.0,0.00030136,6]
[385811206,1758055853488,-503.05,0.00030136,6]
[385811207,1758055853497,-400.0,0.00030136,6]
[385811208,1758055853506,-400.0,0.00030136,6]
[385811209,1758055853515,-400.0,0.00030136,6]
[385811210,1758055853524,-400.0,0.00030136,6]
[385811211,1758055853534,-400.0,0.00030136,6]
[385811212,1758055853543,-526.12,0.00030136,6]
[385811213,1758055853552,-567.68,0.00030136,6]
[385811214,1758055853562,-824.87,0.00030136,6]
[385811215,1758055853572,-661.2,0.00030136,6]
[385811216,1758055853582,-400.0,0.00030136,6]
[385811217,1758055853591,-2437.93,0.00030136,6]
[385811218,1758055853601,-400.0,0.00030136,6]
[385811219,1758055853611,-400.0,0.00030136,6]
[385811220,1758055853621,-756.47,0.00030136,6]
[385811221,1758055853630,-400.0,0.00030136,6]
[385811222,1758055853639,-400.0,0.00030136,6]
[385811223,1758055853649,-542.28,0.00030136,6]
[385811224,1758055853658,-500.0,0.00030136,6]
[385811225,1758055853667,-400.0,0.00030136,6]
[385811226,1758055853676,-967.74,0.00030136,6]
[385811227,1758055853686,-400.0,0.00030136,6]
[385811228,1758055853695,-500.0,0.00030136,6]
[385811229,1758055853704,-400.0,0.00030136,6]
[385811230,1758055853713,-400.0,0.00030136,6]
[385811231,1758055853722,-500.0,0.00030136,6]
[385811232,1758055853731,-400.0,0.00030136,6]
[385811233,1758055853741,-515.24120597,0.00030136,6]
[385811234,1758055853750,-500.0,0.00030136,6]
[385811235,1758055853759,-246.40645287,0.00030136,6]
[385811236,1758055853770,-500.0,0.00030136,6]
[385811237,1758055853779,-471.94,0.00030136,6]
[385811238,1758055853788,-780.22,0.00030136,6]
[385811239,1758055853798,-500.0,0.00030136,6]
[385811240,1758055853808,-500.0,0.00030136,6]
[385811241,1758055853818,-400.0,0.00030136,6]
[385811242,1758055853827,-500.0,0.00030136,6]
[385811243,1758055853836,-500.0,0.00030136,6]
[385811244,1758055853846,-400.0,0.00030136,6]
[385811245,1758055853856,-500.0,0.00030136,6]
[385811246,1758055853865,-500.0,0.00030136,6]
[385811247,1758055853874,-1066.11,0.00030136,6]
[385811248,1758055853883,-934.86,0.00030136,6]
[385811249,1758055853893,-406.23481541,0.00030136,6]
[385811250,1758055853902,-523.32239876,0.00030136,6]
[385811251,1758055853911,-400.0,0.00030136,6]
[385811252,1758055853920,-400.0,0.00030136,6]
[385811253,1758055853930,-882.36,0.00030136,6]
[385811254,1758055853938,-400.0,0.00030136,6]
[385811255,1758055853947,-400.0,0.00030136,6]
[385811256,1758055853957,-3476.13,0.00030136,6]
[385811257,1758055853966,-1084.85,0.00030136,6]
[385811258,1758055853978,-400.0,0.00030136,6]
[385811259,1758055853987,-593.88,0.00030136,6]
[385811260,1758055853996,-400.0,0.00030136,6]
[385811261,1758055854005,-1071.43,0.00030136,6]
[385811262,1758055854014,-400.0,0.00030136,6]
[385811263,1758055854023,-400.0,0.00030136,6]
[385811264,1758055854032,-404.42968876,0.00030136,6]
[385811265,1758055854041,-933.57,0.00030136,6]
[385811266,1758055854051,-748.66,0.00030136,6]
[385811267,1758055854059,-400.0,0.00030136,6]
[385811268,1758055854069,-400.0,0.00030136,6]
[385811269,1758055854078,-400.0,0.00030136,6]
[385811270,1758055854086,-400.0,0.00030136,6]
[385811271,1758055854095,-451.23,0.00030136,6]
[385811272,1758055854104,-400.0,0.00030136,6]
[385811273,1758055854114,-500.0,0.00030136,6]
[385811274,1758055854123,-400.0,0.00030136,6]
[385811275,1758055854132,-400.0,0.00030136,6]
[385811276,1758055854142,-400.0,0.00030136,6]
[385811277,1758055854151,-400.0,0.00030136,6]
[385811278,1758055854160,-400.0,0.00030136,6]
[385811279,1758055854169,-400.0,0.00030136,6]
[385811280,1758055854178,-400.0,0.00030136,6]
[385811281,1758055854187,-400.0,0.00030136,6]
[385811282,1758055854196,-400.0,0.00030136,6]
[385811283,1758055854205,-400.0,0.00030136,6]
[385811284,1758055854214,-379.98520715,0.00030136,6]
[385811285,1758055854224,-505.10283584,0.00030136,6]
[385811286,1758055854233,-493.33,0.00030136,6]
[385811287,1758055854242,-673.15,0.00030136,6]
[385811288,1758055854251,-669.04,0.00030136,6]
[385811289,1758055854261,-400.0,0.00030136,6]
[385811290,1758055854270,-400.0,0.00030136,6]
[385811291,1758055854279,-400.0,0.00030136,6]
[385811292,1758055854288,-560.66,0.00030136,6]
[385811293,1758055854297,-400.0,0.00030136,6]
[385811294,1758055854306,-401.43716805,0.00030136,6]
[385811295,1758055854315,-400.0,0.00030136,6]
[385811296,1758055854324,-400.0,0.00030136,6]
[385811297,1758055854335,-400.0,0.00030136,6]
[385811298,1758055854345,-400.0,0.00030136,6]
[385811299,1758055854354,-735.64,0.00030136,6]
[385811300,1758055854363,-400.0,0.00030136,6]
[385811301,1758055854373,-400.0,0.00030136,6]
[385811302,1758055854382,-400.0,0.00030136,6]
[385811303,1758055854391,-400.0,0.00030136,6]
[385811304,1758055854400,-400.0,0.00030136,6]
[385811305,1758055854409,-468.22,0.00030136,6]
[385811306,1758055854418,-502.41265883,0.00030136,6]
[385811307,1758055854427,-400.0,0.00030136,6]
[385811308,1758055854436,-400.0,0.00030136,6]
[385811309,1758055854446,-1125.3,0.00030136,6]
[385811310,1758055854455,-400.0,0.00030136,6]
[385811311,1758055854464,-552.42,0.00030136,6]
[385811312,1758055854474,-400.0,0.00030136,6]
[385811313,1758055854483,-400.0,0.00030136,6]
[385811314,1758055854493,-400.0,0.00030136,6]
[385811315,1758055854502,-400.0,0.00030136,6]
[385811316,1758055854512,-400.0,0.00030136,6]
[385811317,1758055854521,-909.09,0.00030136,6]
[385811318,1758055854530,-853.45,0.00030136,6]
[385811319,1758055854540,-400.0,0.00030136,6]
[385811320,1758055854549,-400.0,0.00030136,6]
[385811321,1758055854558,-527.01,0.00030136,6]
[385811322,1758055854567,-400.0,0.00030136,6]
[385811323,1758055854576,-400.0,0.00030136,6]
[385811324,1758055854585,-400.0,0.00030136,6]
[385811325,1758055854595,-401.89,0.00030136,6]
[385811326,1758055854605,-400.0,0.00030136,6]
[385811327,1758055854614,-443.52,0.00030136,6]
[385811328,1758055854624,-400.0,0.00030136,6]
[385811329,1758055854634,-852.14,0.00030136,6]
[385811330,1758055854643,-479.26,0.00030136,6]
[385811331,1758055854653,-400.0,0.00030136,6]
[385811332,1758055854662,-1176.21,0.00030136,6]